bitfinex/quotes_ETHUSD_20251006
["timestamp","ask_amount","ask_price","bid_price","bid_amount"]
[1759771454560,0.72332358,4712.9,4712.1,0.011]
[1759771454760,0.72332358,4712.9,4711.6,1e-08]
[1759771454761,2.75597621,4711.7,4711.6,1e-08]
[1759771455089,0.1064,4711.7,4711.6,1e-08]
[1759771455394,2.68377621,4711.7,4711.6,1e-08]
[1759771455602,3.1643838,4711.7,4711.6,1e-08]
[1759771456888,2.12222239,4712.1,4711.6,1e-08]
[1759771457097,0.455,4712.3,4711.6,1e-08]
[1759771457098,2.57712189,4712.3,4711.6,1e-08]
[1759771457267,4.85020287,4712.9,4711.6,1e-08]
[1759771457268,0.455,4712.0,4711.6,1e-08]
[1759771457578,2.12228612,4711.9,4711.6,1e-08]
[1759771457900,2.12233116,4711.8,4711.7,2.117]
[1759771458104,2.57733116,4711.8,4711.7,2.438]
[1759771458263,2.57733116,4711.8,4711.6,1e-08]
[1759771458264,2.12237621,4711.7,4711.6,1e-08]
[1759771458469,2.75597621,4711.7,4711.6,1e-08]
[1759771458706,3.21097621,4711.7,4711.6,1e-08]
[1759771458907,2.57737621,4711.7,4711.6,1e-08]
[1759771459068,3.09433862,4711.7,4711.6,1e-08]
[1759771459825,1.23,4711.7,4711.6,1e-08]
[1759771460120,1.685,4711.7,4711.6,1e-08]
[1759771460321,3.35237621,4711.7,4711.6,1e-08]
[1759771460483,3.80737621,4711.7,4711.6,1e-08]
[1759771460684,3.80737621,4711.7,4711.6,2.43800001]
[1759771460918,1.23,4711.7,4711.6,2.43800001]
[1759771461909,3.35237621,4711.7,4711.6,2.43800001]
[1759771462625,2.46,4711.7,4711.6,2.43800001]
[1759771462799,2.46,4711.7,4711.6,12.40655901]
[1759771462989,2.46,4711.7,4711.6,5.06035101]
[1759771463194,2.46,4711.7,4711.6,7.25455101]
[1759771463395,2.46,4711.7,4711.6,2.26321101]
[1759771463604,2.46,4711.7,4711.6,2.43800001]
[1759771464014,3.69,4711.7,4711.6,2.43800001]
[1759771464207,3.69,4711.7,4711.6,8.84466801]
[1759771464408,3.69,4711.7,4711.6,9.99366681]
[1759771464939,3.69,4711.7,4711.6,10.34891481]
[1759771465139,3.69,4711.7,4711.6,7.91091481]
[1759771465298,3.69,4711.7,4711.6,10.34991481]
[1759771465499,4.92,4711.7,4711.6,10.34991481]
[1759771465809,4.92,4711.7,4711.6,6.72676181]
[1759771466397,4.92,4711.7,4711.6,7.17486181]
[1759771466811,4.92,4711.7,4711.6,21.30149981]
[1759771467017,6.15,4711.7,4711.6,21.30149981]
[1759771468448,7.38,4711.7,4711.6,21.30149981]
[1759771469245,7.38,4711.7,4711.6,20.74499981]
[1759771469621,8.61,4711.7,4711.6,19.81572301]
[1759771470014,8.61,4711.7,4711.6,20.26382301]
[1759771470219,8.61,4711.7,4711.6,38.1153067]
[1759771470419,8.61,4711.7,4711.6,38.98857961]
[1759771470851,1.23,4711.9,4711.8,2.75593116]
[1759771471022,1.23,4711.9,4711.8,27.03014769]
[1759771471347,1.23,4711.9,4711.8,27.47824769]
[1759771471531,1.23,4711.9,4711.8,27.47728769]
[1759771472051,0.1064,4713.8,4711.9,2.4]
[1759771472219,0.1064,4714.3,4712.8,13.32906244]
[1759771472423,0.1064,4714.3,4712.8,40.23776627]
[1759771472652,0.1064,4714.3,4712.8,40.75787428]
[1759771473153,2.462,4714.6,4712.8,40.75787428]
[1759771473154,0.67628335,4713.0,4712.9,4.52183581]
[1759771473323,0.67628335,4713.0,4712.9,22.85566682]
[1759771473857,0.67628335,4713.0,4712.9,27.50166682]
[1759771475059,0.67628335,4713.0,4712.9,24.81999391]
[1759771475372,0.67628335,4713.0,4712.9,27.26199391]
[1759771475548,1.90628335,4713.0,4712.9,26.82699391]
[1759771476168,1.90628335,4713.0,4712.9,24.7051581]
[1759771476470,1.90628335,4713.0,4712.9,26.82699391]
[1759771476645,1.90828335,4713.0,4712.9,24.7051581]
[1759771476848,1.90828335,4713.0,4712.9,26.54655881]
[1759771477173,1.90828335,4713.0,4712.9,24.424723]
[1759771477174,3.13828335,4713.0,4712.9,24.424723]
[1759771477564,3.13828335,4713.0,4712.9,26.54655881]
[1759771477764,3.13828335,4713.0,4712.9,29.73396682]
[1759771478153,3.13828335,4713.0,4712.9,27.3724581]
[1759771478357,3.13828335,4713.0,4712.9,29.73396682]
[1759771478638,4.36828335,4713.0,4712.9,29.62756682]
[1759771479372,4.36828335,4713.0,4712.9,26.50299391]
[1759771479573,4.36828335,4713.0,4712.9,26.82599391]
[1759771479778,5.59828335,4713.0,4712.9,26.82599391]
[1759771480676,5.59828335,4713.0,4712.9,22.18099391]
[1759771480861,5.59828335,4713.0,4712.9,26.82599391]
[1759771481070,5.59828335,4713.0,4712.9,9.44727091]
[1759771481245,6.82828335,4713.0,4712.9,21.90055881]
[1759771481448,6.82828335,4713.0,4712.9,26.54555881]
[1759771482290,6.82828335,4713.0,4712.9,26.54455881]
[1759771482691,8.05828335,4713.0,4712.9,26.54455881]
[1759771483068,8.05828335,4713.0,4712.9,24.422723]
[1759771483468,8.05828335,4713.0,4712.9,15.732465]
[1759771483788,8.53248335,4713.0,4712.9,13.019384]
[1759771483990,9.76248335,4713.0,4712.9,10.619384]
[1759771484212,9.76248335,4713.0,4712.9,2.4]
[1759771484379,10.73873169,4713.0,4712.9,2.439]
[1759771484569,10.73873169,4713.0,4711.7,2.119]
[1759771484765,0.4742,4712.9,4711.8,14.793129]
[1759771484976,0.4742,4712.9,4712.0,2.4]
[1759771485173,9.28828335,4713.0,4712.9,14.089779]
[1759771485396,9.28828335,4713.0,4712.9,2.439]
[1759771485694,9.76248335,4713.0,4712.9,4.839]
[1759771485895,9.76248335,4713.0,4712.9,8.195313]
[1759771486084,9.76248335,4713.0,4712.9,7.466313]
[1759771486395,9.76248335,4713.0,4712.9,8.216515]
[1759771486970,10.51828335,4713.0,4712.9,8.008881]
[1759771487370,10.51828335,4713.0,4712.9,21.747382]
[1759771487601,10.99248335,4713.0,4712.9,2.4]
[1759771487903,12.30389854,4713.0,4712.9,2.4]
[1759771488120,11.82969854,4713.0,4712.9,4.84]
[1759771488283,10.99248335,4713.0,4712.9,4.84]
[1759771488613,12.22248335,4713.0,4712.9,4.84]
[1759771488912,12.32888335,4713.0,4712.9,4.84]
[1759771489111,12.32888335,4713.0,4712.9,7.280543]
[1759771489410,13.56177168,4713.0,4712.9,2.4]
[1759771489617,13.56177168,4713.0,4712.9,4.839]
[1759771489800,14.79177168,4713.0,4712.9,4.839]
[1759771491510,14.78888335,4713.0,4712.9,4.839]
[1759771491882,14.78888335,4713.0,4711.9,2.204]
[1759771492078,14.78888335,4713.0,4712.0,6.758314]
[1759771492079,2.59603581,4712.9,4712.0,6.758314]
[1759771492277,0.4742,4712.8,4712.2,2.4]
[1759771492520,0.4742,4712.7,4712.4,2.4]
[1759771492681,1.94244834,4712.6,4712.5,2.438]
[1759771493088,0.5806,4712.6,4712.5,10.486456]
[1759771493289,0.5806,4712.6,4712.5,7.714815]
[1759771493514,0.5806,4712.6,4712.5,4.838]
[1759771493715,0.5806,4712.6,4712.5,7.389808]
[1759771493924,0.5806,4712.6,4712.5,4.838]
[1759771494127,0.5806,4712.6,4712.5,2.4]
[1759771494299,1.8106,4712.6,4712.5,7.640356]
[1759771494490,1.8106,4712.6,4712.5,4.838]
[1759771495111,2.5821924,4712.6,4712.5,2.401]
[1759771495419,4.70416328,4712.6,4712.5,2.44]
[1759771495622,5.93416328,4712.6,4712.5,2.44]
[1759771497029,7.16416328,4712.6,4712.5,2.44]
[1759771497933,5.0421924,4712.6,4712.5,2.44]
[1759771498302,6.2721924,4712.6,4712.5,2.44]
[1759771499794,7.0279924,4712.6,4712.5,2.44]
[1759771499993,7.0279924,4712.6,4712.5,12.111284]
[1759771499994,6.15,4712.6,4712.5,12.111284]
[1759771500214,6.15,4712.6,4712.5,12.30483]
[1759771500640,6.15,4712.6,4712.5,8.790052]
[1759771501000,7.38,4712.6,4712.5,4.84]
[1759771501208,7.38,4712.6,4712.5,5.2829]
[1759771501411,7.38,4712.6,4712.5,16.197579]
[1759771501733,7.38,4712.6,4712.5,20.69753001]
[1759771501931,7.38,4712.6,4712.5,24.780623]
[1759771502440,7.38,4712.6,4712.5,26.90263891]
[1759771502612,8.61,4712.6,4712.5,24.780623]
[1759771502932,8.61,4712.6,4712.5,26.90263891]
[1759771503902,9.84,4712.6,4712.5,26.90263891]
[1759771504109,9.84,4712.6,4712.5,24.780623]
[1759771504342,9.84,4712.6,4712.5,26.90263891]
[1759771504938,9.84,4712.6,4712.5,27.61364692]
[1759771505131,2.39816958,4712.6,4712.5,27.61364692]
[1759771505443,3.62816958,4712.6,4712.5,34.61364692]
[1759771505738,3.62816958,4712.6,4712.5,36.81364692]
[1759771505915,3.62816958,4712.6,4712.5,26.66763891]
[1759771506120,3.62816958,4712.6,4712.5,29.10263891]
[1759771506763,4.85816958,4712.6,4712.5,29.10263891]
[1759771507723,4.85816958,4712.6,4712.5,24.46363891]
[1759771507920,4.85816958,4712.6,4712.5,7.08491591]
[1759771508136,6.08816958,4712.6,4712.5,11.28001591]
[1759771508346,6.08816958,4712.6,4712.5,24.47113891]
[1759771508557,6.08816958,4712.6,4712.5,29.36807401]
[1759771509429,7.31816958,4712.6,4712.5,29.36807401]
[1759771510054,7.31816958,4712.6,4712.5,29.47447401]
[1759771510365,7.31816958,4712.6,4712.5,30.00167401]
[1759771510842,8.54816958,4712.6,4712.5,30.00167401]
[1759771511029,8.54816958,4712.6,4712.5,31.86324302]
[1759771511349,8.54816958,4712.6,4712.5,32.49951092]
[1759771511556,8.54816958,4712.6,4712.5,31.86591092]
[1759771511725,8.54816958,4712.6,4712.5,30.00434191]
[1759771512060,4.65169358,4712.6,4712.5,20.76053081]
[1759771512246,5.88169358,4712.6,4712.5,17.4453369]
[1759771512553,5.88169358,4712.6,4712.5,8.7246319]
[1759771512740,6.34789358,4712.6,4712.5,0.001]
[1759771512942,8.47989127,4712.6,4712.5,2.434]
[1759771513154,8.47989127,4712.6,4712.2,2.204]
[1759771513337,0.4662,4712.5,4712.3,3.802253]
[1759771513657,2.12210597,4712.3,4712.0,0.001]
[1759771513826,0.4662,4712.4,4712.0,0.001]
[1759771513827,1.18319972,4712.2,4712.0,0.001]
[1759771514023,1.64939972,4712.2,4712.1,10.743533]
[1759771514234,9.24369127,4712.6,4712.2,2.4]
[1759771514235,7.11169358,4712.6,4712.2,2.4]
[1759771514431,7.11169358,4712.6,4712.1,5.713193]
[1759771514432,7.11169358,4712.6,4712.1,2.434]
[1759771514653,7.11169358,4712.6,4712.2,2.510346]
[1759771514854,0.4662,4712.5,4712.3,2.4]
[1759771515055,1.22398936,4712.4,4712.0,0.001]
[1759771515437,0.4662,4712.3,4712.2,2.4]
[1759771515629,0.4662,4712.3,4712.2,5.394557]
[1759771516054,0.4662,4712.3,4712.2,4.907428]
[1759771516240,1.29976829,4712.3,4712.1,2.434]
[1759771516448,2.58835185,4712.2,4712.0,0.001]
[1759771516642,0.4662,4712.2,4712.1,2.433]
[1759771517755,1.6962,4712.2,4712.0,0.001]
[1759771517956,1.6962,4712.2,4711.6,1e-08]
[1759771517957,0.6336,4711.8,4711.6,1e-08]
[1759771518160,2.12282675,4710.7,4710.6,0.023]
[1759771518337,2.12282675,4710.7,4707.4,2.204]
[1759771518338,14.37704469,4710.7,4708.1,0.09493623]
[1759771518539,0.6336,4710.5,4708.1,0.01]
[1759771518947,1.90390447,4710.6,4708.1,0.01]
[1759771518948,0.6336,4710.0,4708.1,0.01]
[1759771519295,0.4662,4710.4,4709.2,3.48345]
[1759771519460,0.4662,4710.3,4709.3,5.472448]
[1759771519634,0.4662,4710.2,4709.4,3.6777008]
[1759771519841,0.4662,4710.1,4709.5,2.076456]
[1759771520040,0.4662,4710.1,4709.5,4.476456]
[1759771520236,0.4662,4710.1,4709.7,2.4]
[1759771520437,1.23,4710.7,4709.9,2.4]
[1759771520662,1.23,4710.4,4710.1,2.4]
[1759771520863,1.23,4710.4,4710.3,2.4]
[1759771521160,1.23,4710.4,4710.3,18.315247]
[1759771521363,1.3364,4710.4,4709.9,1.33400965]
[1759771521660,1.3364,4710.4,4708.5,13.74444469]
[1759771521661,0.4662,4710.3,4710.1,2.4]
[1759771521863,1.23,4710.4,4710.2,2.433]
[1759771522064,1.23,4710.4,4710.3,2.433]
[1759771522227,1.23,4710.4,4710.3,6.246048]
[1759771522427,1.3364,4710.4,4710.3,7.225582]
[1759771522627,1.3364,4710.4,4710.3,10.29459001]
[1759771522628,1.23,4710.4,4710.3,10.29459001]
[1759771522832,1.23,4710.4,4710.3,9.4169351]
[1759771523039,1.23,4710.4,4710.3,2.4]
[1759771523563,2.46,4710.4,4710.3,7.855343]
[1759771523763,2.46,4710.4,4710.3,2.4]
[1759771524062,2.9262,4710.4,4710.3,4.833]
[1759771524657,3.46482,4710.4,4710.3,4.833]
[1759771524832,3.46482,4710.4,4709.1,0.01]
[1759771525237,6.81778748,4710.4,4709.2,2.73599]
[1759771525452,2.58925005,4710.3,4709.3,3.219024]
[1759771525653,0.4662,4710.2,4709.3,3.219024]
[1759771525854,0.935682,4710.1,4709.1,0.01]
[1759771526034,0.935682,4710.1,4709.2,2.102]
[1759771526235,0.4662,4710.0,4709.3,2.434]
[1759771526436,0.4662,4710.0,4709.4,2.433]
[1759771526631,0.469482,4710.1,4709.4,2.433]
[1759771526632,2.12336766,4709.5,4709.4,2.433]
[1759771526865,2.12336766,4709.5,4709.1,0.01]
[1759771526866,0.4662,4709.5,4709.1,0.01]
[1759771527034,2.12345841,4709.3,4709.2,2.433]
[1759771527241,0.4662,4709.3,4709.1,0.01]
[1759771527466,0.5928102,4710.0,4709.2,2.433]
[1759771527671,2.12345783,4709.3,4709.1,0.01]
[1759771527964,2.12345783,4709.3,4709.2,2.433]
[1759771528267,2.12305209,4710.2,4709.2,2.433]
[1759771528441,0.4662,4710.1,4709.2,2.433]
[1759771528642,2.12333359,4709.6,4709.2,2.433]
[1759771528965,0.4662,4709.5,4709.2,2.433]
[1759771529166,1.23,4710.3,4709.3,2.433]
[1759771529374,2.12346603,4709.3,4709.1,0.01]
[1759771529670,1.23,4709.5,4709.1,0.01]
[1759771529879,2.12341274,4709.4,4709.1,0.01]
[1759771530046,2.12350293,4709.2,4709.1,0.01]
[1759771530546,1.23,4709.5,4709.1,2.443]
[1759771530747,0.16962,4709.4,4709.1,2.444]
[1759771530947,1.23,4709.5,4709.1,2.444]
[1759771531170,1.23,4709.5,4709.2,3.325726]
[1759771531341,1.23,4709.5,4709.1,2.444]
[1759771531342,1.23,4709.5,4709.3,3.986909]
[1759771531541,1.23,4709.5,4709.2,4.462665]
[1759771532245,1.23,4709.5,4709.2,3.328733]
[1759771532571,0.1064,4709.3,4709.1,0.011]
[1759771532768,0.1064,4709.3,4709.2,2.432]
[1759771532971,0.1064,4709.3,4709.2,9.031383]
[1759771533286,0.1064,4709.3,4709.2,24.02954781]
[1759771533577,0.1064,4709.3,4709.2,22.07252581]
[1759771533784,0.1064,4709.3,4709.2,21.22076681]
[1759771534088,1.23,4709.4,4709.3,2.4]
[1759771534371,1.23,4709.4,4709.3,5.490526]
[1759771534550,1.23,4709.4,4709.3,7.741834]
[1759771534749,1.23,4709.4,4709.3,4.840692]
[1759771535065,1.23,4709.4,4709.3,2.408692]
[1759771535244,1.23,4709.4,4709.3,2.431]
[1759771535568,1.23,4709.4,4709.3,7.407846]
[1759771535780,1.23,4709.4,4709.3,9.862152]
[1759771535958,1.23,4709.4,4709.3,17.2336602]
[1759771536151,1.23,4709.4,4709.3,16.8291902]
[1759771536341,1.23,4709.4,4709.3,8.021434]
[1759771536537,1.23,4709.4,4709.3,4.84786]
[1759771536769,3.35341274,4709.4,4709.3,2.4]
[1759771536973,5.01171274,4709.4,4709.3,4.831]
[1759771537642,5.01171274,4709.4,4709.3,2.4]
[1759771537850,2.12350293,4709.2,4709.1,0.011]
[1759771538116,2.12350293,4709.2,4709.1,2.442]
[1759771538390,2.55180293,4709.2,4709.1,2.442]
[1759771539407,2.75728331,4708.8,4708.7,0.001]
[1759771539710,2.75728331,4708.8,4708.0,0.001]
[1759771539711,2.75759906,4708.1,4708.0,0.001]
[1759771540065,3.18589906,4708.1,4708.0,0.001]
[1759771540373,2.75782465,4707.6,4707.5,0.001]
[1759771540579,3.24602239,4707.6,4707.5,0.001]
[1759771540780,3.67432239,4707.6,4707.5,0.001]
[1759771541663,3.67432239,4707.6,4707.5,0.453]
[1759771541898,3.67432239,4707.6,4707.5,0.001]
[1759771542474,2.12440516,4707.2,4706.1,0.01]
[1759771542694,0.6336,4706.1,4704.4,0.2589351]
[1759771543016,2.12523586,4705.4,4705.0,1.861]
[1759771543170,2.12530816,4705.2,4705.0,1.861]
[1759771543369,2.12530816,4705.2,4704.4,0.2589351]
[1759771543688,2.12530816,4705.2,4705.1,1.219]
[1759771543993,3.18720816,4705.2,4705.1,2.44]
[1759771544167,3.18720816,4705.2,4705.1,1e-08]
[1759771544365,3.71845256,4705.2,4705.1,1e-08]
[1759771545201,3.82485256,4705.2,4705.1,1e-08]
[1759771545400,18.54158637,4705.2,4705.1,1e-08]
[1759771545636,0.6336,4705.1,4704.1,1e-08]
[1759771545800,2.86575995,4704.2,4704.1,1e-08]
[1759771545994,3.36490463,4704.2,4704.1,1e-08]
[1759771546327,3.79320463,4704.2,4704.1,1e-08]
[1759771547931,3.15960463,4704.2,4704.1,1e-08]
[1759771548233,3.79320463,4704.2,4704.1,1e-08]
[1759771550018,3.68680463,4704.2,4704.1,1e-08]
[1759771550224,4.91680463,4704.2,4704.1,1e-08]
[1759771550842,0.6336,4704.1,4701.6,0.435]
[1759771551145,0.6336,4704.0,4702.2,9.192299]
[1759771551305,2.12642288,4702.8,4702.2,6.653487]
[1759771551502,2.12644705,4702.7,4702.2,5.902487]
[1759771551738,2.1264052,4702.8,4702.3,0.4413]
[1759771551914,2.12639544,4702.8,4702.4,5.902387]
[1759771552115,2.75946316,4704.0,4702.5,2.43]
[1759771552315,0.49168046,4704.1,4702.7,2.4]
[1759771552619,2.46,4704.2,4702.9,2.4]
[1759771552819,3.69,4704.2,4703.1,2.4]
[1759771553033,3.69,4704.2,4703.2,0.4413]
[1759771553236,3.69,4704.2,4703.4,2.4]
[1759771553440,3.69,4704.2,4703.6,2.4]
[1759771553643,3.69,4704.2,4703.8,2.4]
[1759771553807,3.69,4704.2,4703.9,2.43]
[1759771554013,3.69,4704.2,4703.9,2.8713]
[1759771554232,3.69,4704.2,4704.0,2.8413]
[1759771554549,2.12585034,4704.0,4703.9,2.43]
[1759771554905,2.12580574,4704.1,4703.9,2.43]
[1759771555106,2.70743091,4704.0,4703.9,2.43]
[1759771555308,2.12585034,4704.0,4703.9,2.43]
[1759771556046,2.12609271,4703.5,4703.1,0.4413]
[1759771556246,2.1262205,4703.2,4702.6,0.4413]
[1759771556416,0.42523014,4703.2,4702.5,0.63783984]
[1759771556604,0.6336,4703.6,4702.6,7.80741]
[1759771556808,0.6336,4703.6,4702.6,2.431]
[1759771557005,7.04578975,4704.2,4702.6,2.431]
[1759771557006,2.126438,4702.7,4702.6,2.431]
[1759771557209,2.1263444,4703.0,4702.6,2.431]
[1759771557406,2.12632921,4703.0,4702.6,2.431]
[1759771557606,0.6336,4703.8,4702.6,2.431]
[1759771557817,2.12626246,4703.1,4702.6,2.431]
[1759771558019,2.1263036,4703.0,4702.6,2.431]
[1759771558218,0.44177431,4703.7,4702.6,2.431]
[1759771558219,2.12634885,4702.9,4702.6,2.431]
[1759771558441,0.6336,4703.6,4702.6,2.431]
[1759771558740,2.12638758,4702.9,4702.6,2.431]
[1759771558914,1.23,4703.5,4702.6,2.431]
[1759771559314,1.23,4703.5,4702.7,9.758286]
[1759771559515,1.23,4703.5,4702.9,2.4]
[1759771559742,1.23,4703.5,4703.1,2.4]
[1759771559915,1.23,4703.5,4703.3,2.4]
[1759771560110,1.23,4703.5,4703.4,2.432]
[1759771560527,1.3364,4703.5,4703.4,2.432]
[1759771560927,1.3364,4703.5,4703.4,2.8733]
[1759771561759,1.3364,4703.5,4703.4,14.020328]
[1759771561922,1.3364,4703.5,4703.4,19.064184]
[1759771562244,1.3364,4703.5,4703.4,13.021461]
[1759771562445,1.3364,4703.5,4703.4,10.021461]
[1759771563146,1.3364,4703.5,4703.4,5.2733]
[1759771563147,2.46,4703.5,4703.4,5.2733]
[1759771563348,2.46,4703.5,4703.4,7.50582152]
[1759771563517,2.46,4703.5,4703.4,6.01735682]
[1759771563716,2.46,4703.5,4703.4,30.38031834]
[1759771563917,2.46,4703.5,4703.4,38.77707834]
[1759771564145,1.23,4704.0,4703.9,2.12589553]
[1759771564451,1.23,4704.0,4703.9,51.36947352]
[1759771564658,1.23,4704.0,4703.9,43.38928652]
[1759771564951,1.23,4704.0,4703.9,48.70894952]
[1759771565154,1.23,4704.0,4703.9,51.36481252]
[1759771566022,1.23,4704.0,4703.9,15.82955918]
[1759771566243,1.23,4704.0,4703.9,7.058079]
[1759771566438,1.23,4704.0,4703.9,4.595591]
[1759771567046,1.23,4704.0,4703.9,7.027591]
[1759771567218,1.23,4704.0,4703.9,8.721778]
[1759771567916,2.46,4704.0,4703.9,11.30457353]
[1759771568248,2.46,4704.0,4703.9,38.97864929]
[1759771568820,2.46,4704.0,4703.9,33.97577776]
[1759771569022,2.46,4704.0,4703.9,33.71974176]
[1759771569248,3.69,4704.0,4703.9,11.368373]
[1759771569460,3.69,4704.0,4703.9,9.306466]
[1759771570052,3.69,4704.0,4703.9,2.4]
[1759771570258,4.1242,4704.0,4703.1,0.001]
[1759771570457,1.02762,4703.9,4703.2,2.432]
[1759771570657,2.12605022,4703.6,4703.3,2.433]
[1759771570823,0.4342,4703.5,4703.4,2.439]
[1759771571025,1.02762,4703.9,4703.1,0.001]
[1759771571225,2.12621194,4703.2,4703.1,0.001]
[1759771571557,2.3239435,4703.2,4703.1,0.001]
[1759771571758,3.19401194,4703.2,4703.1,0.001]
[1759771572326,1.0678,4703.2,4703.1,0.001]
[1759771572531,0.54098,4703.2,4703.1,0.001]
[1759771572844,2.66719194,4703.2,4703.1,0.131]
[1759771573351,3.30079194,4703.2,4703.1,0.001]
[1759771573558,3.30079194,4703.2,4703.1,0.833]
[1759771573753,3.30079194,4703.2,4703.1,0.001]
[1759771573754,3.95501087,4703.2,4703.1,0.001]
[1759771574330,3.4987227,4703.2,4703.1,0.001]
[1759771574529,3.6051227,4703.2,4703.1,1.39]
[1759771574726,3.40719194,4703.2,4703.1,1.33]
[1759771575127,2.51098,4703.2,4703.1,1.33]
[1759771575328,1.3364,4703.2,4703.1,1.33]
[1759771576172,1.3364,4703.2,4703.1,8.363896]
[1759771576374,1.3364,4703.2,4703.1,7.266937]
[1759771576575,2.5664,4703.2,4703.1,6.173533]
[1759771576940,2.5664,4703.2,4703.1,6.630433]
[1759771577146,2.46,4703.2,4703.1,20.694457]
[1759771577481,2.46,4703.2,4703.1,36.21240595]
[1759771577650,2.46,4703.2,4703.1,34.88340595]
[1759771577849,2.46,4703.2,4703.1,39.53240595]
[1759771578078,3.69,4703.2,4703.1,39.53240595]
[1759771578271,3.69,4703.2,4703.1,50.48109895]
[1759771578788,3.69,4703.2,4703.1,45.83209895]
[1759771578950,3.69,4703.2,4703.1,50.48109895]
[1759771579473,4.92,4703.2,4703.1,53.25939271]
[1759771579846,4.92,4703.2,4703.1,54.13183151]
[1759771580270,4.92,4703.2,4703.1,53.89299271]
[1759771580498,4.92,4703.2,4703.1,48.45003381]
[1759771580645,6.15,4703.2,4703.1,11.830951]
[1759771580850,6.15,4703.2,4703.1,13.95720814]
[1759771581282,6.15,4703.2,4703.1,39.73855714]
[1759771581672,6.15,4703.2,4703.1,39.9816589]
[1759771582061,7.38,4703.2,4703.1,39.8752589]
[1759771582256,7.38,4703.2,4703.1,39.9816589]
[1759771583357,1.23,4703.9,4703.2,2.4]
[1759771583652,1.23,4703.9,4703.8,18.12157453]
[1759771583870,1.23,4703.9,4703.8,23.13947453]
[1759771584057,1.23,4703.9,4703.8,29.444985]
[1759771584266,1.23,4703.9,4703.8,9.985364]
[1759771584480,1.23,4703.9,4703.8,7.016286]
[1759771585182,1.23,4703.9,4703.8,9.59912672]
[1759771585388,1.23,4703.9,4703.8,32.060409]
[1759771585686,1.23,4703.9,4703.8,33.91003472]
[1759771585879,6.152,4704.0,4703.9,4.52589553]
[1759771586049,6.152,4704.0,4703.9,35.46473609]
[1759771586246,6.152,4704.0,4703.9,40.10973609]
[1759771586651,6.152,4704.2,4704.1,5.15940514]
[1759771586960,6.152,4704.2,4704.1,7.5245069]
[1759771587162,6.152,4704.2,4704.1,37.9814069]
[1759771587374,6.152,4704.2,4704.1,42.38330514]
[1759771587769,6.152,4704.2,4704.1,42.38230514]
[1759771588358,6.152,4704.2,4704.1,37.10470514]
[1759771588557,6.152,4704.2,4704.1,41.74870514]
[1759771588803,0.002,4704.5,4704.4,2.12566958]
[1759771589108,0.4442,4706.9,4704.7,2.4]
[1759771589389,0.4442,4706.9,4704.9,5.15904368]
[1759771589599,0.4442,4706.9,4704.9,5.40214544]
[1759771589769,0.4442,4706.9,4704.9,40.04614544]
[1759771589954,0.4442,4706.9,4704.9,40.50304544]
[1759771590892,1e-08,4705.1,4705.0,5.15899851]
[1759771591096,0.01,4706.9,4705.8,2.12503718]
[1759771591398,0.4342,4706.8,4705.8,20.13627471]
[1759771591814,0.4342,4706.8,4705.8,54.77927471]
[1759771592340,0.01,4706.9,4705.9,2.4]
[1759771592542,0.01,4706.9,4706.8,2.1245857]
[1759771592833,0.01,4706.9,4706.8,31.555747]
[1759771593037,0.01,4706.9,4706.8,30.994822]
[1759771593234,0.01,4706.9,4706.8,30.6844077]
[1759771593399,0.01,4706.9,4706.8,33.202822]
[1759771593600,0.01,4706.9,4706.8,33.7367847]
[1759771593796,0.01,4706.9,4706.8,38.3787847]
[1759771594127,0.01,4706.9,4706.8,33.7367847]
[1759771594312,0.01,4706.9,4706.8,40.4997847]
[1759771594549,0.01,4706.9,4706.8,41.2875857]
[1759771594747,1.24,4706.9,4706.8,38.6272497]
[1759771594955,1.24,4706.9,4706.8,34.3952647]
[1759771595158,1.24,4706.9,4706.8,29.7532647]
[1759771595364,1.24,4706.9,4706.8,34.3952647]
[1759771595538,1.24,4706.9,4706.8,41.99808746]
[1759771595734,1.23,4707.6,4707.5,2.12426978]
[1759771595933,1.23,4707.6,4707.5,50.34140359]
[1759771596359,1.6589,4707.6,4707.5,2.4]
[1759771596563,1.6589,4707.6,4706.7,0.09811543]
[1759771596864,2.12432507,4707.4,4705.5,2.122]
[1759771597163,0.4289,4707.3,4705.6,9.67622039]
[1759771597367,0.4289,4707.2,4705.7,8.135272]
[1759771597552,2.12432097,4707.4,4705.8,4.64]
[1759771597860,0.4289,4707.1,4706.0,2.4]
[1759771598032,0.4289,4707.0,4706.2,2.4]
[1759771598234,0.4289,4707.0,4706.4,2.4]
[1759771598438,0.4289,4707.0,4706.6,2.4]
[1759771598663,0.4289,4706.9,4706.8,2.4]
[1759771598862,0.4289,4706.9,4706.8,4.527773]
[1759771599066,0.4289,4706.9,4706.8,6.793333]
[1759771599266,0.4289,4706.9,4706.8,8.141067]
[1759771599439,0.4289,4706.9,4706.8,6.549342]
[1759771599769,0.4289,4706.9,4706.8,8.981342]
[1759771600062,0.4289,4706.9,4706.8,7.900342]
[1759771600268,0.4289,4706.9,4705.6,2.122]
[1759771600269,1.6589,4706.9,4705.6,2.122]
[1759771600443,1.6589,4706.9,4705.7,11.177515]
[1759771600444,0.80723571,4706.8,4705.7,11.177515]
[1759771600643,0.4289,4706.8,4705.9,2.4]
[1759771600949,0.4289,4706.7,4706.0,13.817024]
[1759771601146,0.4289,4706.7,4706.2,2.4]
[1759771601348,1.23,4706.9,4706.3,2.432]